fUST/lending_fUST_20250731
["ID","MTS","AMOUNT","RATE_DAILY","PERIOD"]
[376373981,1753953043649,-651.28,0.00019624,2]
[376373983,1753953043658,-460.0,0.00019624,2]
[376373985,1753953043667,-460.0,0.00019624,2]
[376373987,1753953043677,-460.0,0.00019624,2]
[376373989,1753953043686,-198.0,0.00019726,2]
[376373991,1753953043696,-460.0,0.00019726,2]
[376373993,1753953043706,-569.22,0.00019726,2]
[376373995,1753953043715,-460.0,0.00019726,2]
[376373997,1753953043728,-391.86,0.00019726,2]
[376373999,1753953043737,-460.0,0.00019726,2]
[376374001,1753953043746,-460.0,0.00019726,2]
[376374003,1753953043755,-180.25540302,0.00019726,2]
[376374005,1753953043764,-460.0,0.00019726,2]
[376374007,1753953043775,-460.0,0.00019726,2]
[376374009,1753953043784,-460.0,0.00019726,2]
[376374011,1753953043794,-460.0,0.00019726,2]
[376374013,1753953043805,-460.0,0.00019726,2]
[376374015,1753953043814,-272.7,0.00019726,2]
[376374017,1753953043823,-651.28,0.00019898,2]
[376374019,1753953043832,-460.0,0.00019898,2]
[376374021,1753953043842,-460.0,0.00019898,2]
[376374023,1753953043851,-460.0,0.00019898,2]
[376374025,1753953043861,-2160.90956054,0.000199,2]
[376374027,1753953043871,-930.15803146,0.00019921,2]
[376374029,1753953043882,-460.0,0.0002,2]
[376374031,1753953043893,-460.0,0.0002,2]
[376374033,1753953043903,-460.0,0.0002,2]
[376374035,1753953043913,-460.0,0.0002,2]
[376374037,1753953043922,-460.0,0.0002,2]
[376374039,1753953043932,-460.0,0.0002,2]
[376374041,1753953043941,-460.0,0.0002,2]
[376374044,1753953043954,-160.0,0.0002,2]
[376374046,1753953043964,-460.0,0.0002,2]
[376374048,1753953043973,-214.99831783,0.00020017,2]
[376374050,1753953043983,-12642.0599901,0.00020017,2]
[376374052,1753953043992,-262.91102994,0.00020124,2]
[376374054,1753953044002,-2160.90956036,0.00020141,2]
[376374056,1753953044011,-651.28,0.00020172,2]
[376374058,1753953044022,-460.0,0.00020172,2]
[376374060,1753953044031,-460.0,0.00020172,2]
[376374062,1753953044041,-460.0,0.00020172,2]
[376374064,1753953044050,-460.0,0.00020273,2]
[376374066,1753953044060,-460.0,0.00020273,2]
[376374068,1753953044070,-460.0,0.00020273,2]
[376374070,1753953044079,-460.0,0.00020273,2]
[376374072,1753953044089,-460.0,0.00020273,2]
[376374074,1753953044098,-460.0,0.00020273,2]
[376374076,1753953044108,-222.92,0.00020273,2]
[376374092,1753953044247,-2699.99123563,0.00020278,4]
[376374094,1753953044257,-2160.90956036,0.00020383,3]
[376374096,1753953044266,-651.28,0.00020446,2]
[376374098,1753953044276,-212.43,0.00020446,2]
[376374100,1753953044286,-460.0,0.00020446,2]
[376374102,1753953044296,-460.0,0.00020446,2]
[376374104,1753953044305,-460.0,0.00020547,2]
[376374106,1753953044314,-460.0,0.00020547,2]
[376374108,1753953044323,-460.0,0.00020547,2]
[376374110,1753953044332,-460.0,0.00020547,2]
[376374112,1753953044342,-460.0,0.00020547,2]
[376374114,1753953044351,-460.0,0.00020547,2]
[376374116,1753953044360,-500.0,0.00020548,2]
[376374118,1753953044371,-260.0,0.00020548,2]
[376374120,1753953044381,-2160.90956036,0.00020624,3]
[376374122,1753953044389,-651.28,0.0002072,2]
[376374124,1753953044398,-460.0,0.0002072,2]
[376374126,1753953044408,-460.0,0.0002072,2]
[376374128,1753953044417,-460.0,0.00020821,2]
[376374130,1753953044426,-460.0,0.00020821,2]
[376374132,1753953044435,-460.0,0.00020821,2]
[376374134,1753953044444,-460.0,0.00020821,2]
[376374136,1753953044453,-460.0,0.00020821,2]
[376374138,1753953044463,-460.0,0.00020821,2]
[376374140,1753953044473,-2160.90956036,0.00020866,4]
[376374142,1753953044481,-651.28,0.00020994,2]
[376374144,1753953044491,-298.16,0.00020994,2]
[376374146,1753953044500,-460.0,0.00020994,2]
[376374148,1753953044509,-500.0,0.00021064,2]
[376374150,1753953044518,-460.0,0.00021095,2]
[376374152,1753953044527,-460.0,0.00021095,2]
[376374154,1753953044536,-460.0,0.00021095,2]
[376374156,1753953044546,-460.0,0.00021095,2]
[376374158,1753953044555,-460.0,0.00021095,2]
[376374160,1753953044564,-460.0,0.00021095,2]
[376374162,1753953044573,-2160.90956036,0.00021107,4]
[376374164,1753953044583,-262.91102994,0.0002117,2]
[376374166,1753953044592,-651.28,0.00021268,2]
[376374168,1753953044601,-460.0,0.00021268,2]
[376374170,1753953044611,-2160.90956036,0.00021348,5]
[376374172,1753953044620,-460.0,0.00021369,2]
[376374174,1753953044629,-460.0,0.00021369,2]
[376374176,1753953044638,-474.35,0.00021369,2]
[376374178,1753953044648,-460.0,0.00021369,2]
[376374180,1753953044657,-460.0,0.00021369,2]
[376374181,1753953044667,-219.71,0.00021369,2]
[376374183,1753953044676,-200.0,0.00021478,15]
[376374186,1753953044688,-200.0,0.00021478,15]
[376374188,1753953044698,-200.0,0.00021478,15]
[376374190,1753953044707,-200.0,0.00021478,15]
[376374191,1753953044718,-320.0,0.00021478,15]
[376374193,1753953044729,-651.28,0.00021542,2]
[376374195,1753953044738,-566.6,0.00021542,2]
[376374197,1753953044752,-2160.90956036,0.0002159,5]
[376374199,1753953044763,-460.0,0.00021643,2]
[376374201,1753953044773,-460.0,0.00021643,2]
[376374203,1753953044782,-192.95,0.00021643,2]
[376374205,1753953044794,-460.0,0.00021643,2]
[376374207,1753953044803,-380.88,0.00021724,2]
[376374209,1753953044812,-651.28,0.00021816,2]
[376374211,1753953044822,-2160.90956036,0.00021831,6]
[376374213,1753953044831,-460.0,0.00021917,2]
[376374215,1753953044841,-460.0,0.00021917,2]
[376374217,1753953044850,-460.0,0.00021917,2]
[376374219,1753953044860,-225.81457781,0.00021973,2]
[376374221,1753953044869,-301.11869024,0.00021973,2]
[376374223,1753953044878,-2446.4939286,0.00022,2]
[376374225,1753953044887,-18200.55,0.00022,7]
[376374227,1753953044896,-9575.22604694,0.00022,2]
[376374229,1753953044909,-12130.90750501,0.00022,2]
[376374352,1753953046115,-1737.27,0.0002199,10]
[376374353,1753953046125,-14309.03297822,0.00022,2]
[376374354,1753953046136,-421.47202563,0.00022,2]
[376374355,1753953046147,-330.60298117,0.00022,2]
[376375157,1753953289231,401.56113304,0.00018977,2]
[376375158,1753953338638,12861.89483022,0.00018171,2]
[376375159,1753953338661,12038.10516978,0.00018171,2]
[376375160,1753953367681,164.31939373,0.00018977,2]
[376375161,1753953482688,173.189227,0.00018315,2]
[376375162,1753953535373,-174.48881522,0.00019073,2]
[376375163,1753953539389,-6227.20804486,0.00019073,2]
[376375164,1753953539413,-1208.6188384,0.00019077,2]
[376375165,1753953539436,-359.75344919,0.00019077,2]
[376375166,1753953539461,-199.3499585,0.00019077,2]
[376375167,1753953539484,-500.0,0.00019077,2]
[376375168,1753953539508,-502.02813044,0.00019077,2]
[376375169,1753953539533,-540.20618298,0.00019077,2]
[376375170,1753953539556,-467.95277359,0.00019077,2]
[376375171,1753953539581,-540.20618298,0.00019077,2]
[376375172,1753953539602,-500.0,0.00019077,2]
[376375173,1753953539626,-500.0,0.00019077,2]
[376375174,1753953539650,-540.20618298,0.00019077,2]
[376375175,1753953539673,-300.0,0.00019077,2]
[376375176,1753953539699,-540.20618298,0.00019077,2]
[376375177,1753953539723,-500.0,0.00019077,2]
[376375178,1753953539744,-500.0,0.00019077,2]
[376375179,1753953539766,-540.20618298,0.00019077,2]
[376375180,1753953539789,-540.20618298,0.00019077,2]
[376375181,1753953539813,-363.21065723,0.00019077,2]
[376375182,1753953539835,-540.20618298,0.00019077,2]
[376375183,1753953539858,-540.20618298,0.00019077,2]
[376375184,1753953539882,-500.0,0.00019077,2]
[376375185,1753953539905,-540.20618298,0.00019077,2]
[376375186,1753953539927,-540.20618298,0.00019077,2]
[376375187,1753953539952,-500.0,0.00019077,2]
[376375188,1753953539976,-540.20618298,0.00019077,2]
[376375189,1753953540001,-540.20618298,0.00019077,2]
[376375190,1753953540024,-540.20618298,0.00019077,2]
[376375191,1753953540050,-540.20618298,0.00019077,2]
[376375192,1753953540074,-540.20618298,0.00019077,2]
[376375193,1753953540099,-540.20618298,0.00019077,2]
[376375194,1753953540124,-540.20618298,0.00019077,2]
[376375195,1753953540148,-540.20618298,0.00019077,2]
[376375196,1753953540173,-540.20618298,0.00019077,2]
[376375197,1753953540197,-540.20618298,0.00019077,2]
[376375198,1753953540222,-540.20618298,0.00019077,2]
[376375199,1753953540245,-540.20618298,0.00019077,2]
[376375200,1753953540268,-540.20618298,0.00019077,2]
[376375201,1753953540292,-540.20618298,0.00019077,2]
[376375202,1753953540318,-540.20618298,0.00019077,2]
[376375203,1753953540341,-540.20618298,0.00019077,2]
[376375204,1753953540365,-540.20618298,0.00019077,2]
[376375205,1753953540549,-540.20618298,0.00019077,2]
[376375206,1753953540574,-540.20618298,0.00019077,2]
[376375207,1753953540596,-540.20618298,0.00019077,2]
[376375208,1753953540616,-540.20618298,0.00019077,2]
[376375209,1753953540638,-540.20618298,0.00019077,2]
[376375210,1753953540659,-540.20618298,0.00019077,2]
[376375211,1753953540679,-540.20618298,0.00019077,2]
[376375212,1753953540701,-540.20618298,0.00019077,2]
[376375213,1753953540722,-540.20618298,0.00019077,2]
[376375214,1753953540747,-217.45556051,0.00019077,2]
[376375215,1753953583671,474.192557,0.00018977,2]
[376375216,1753953640217,-322.75062247,0.00019077,2]
[376375217,1753953640240,-201.01610443,0.00019077,2]
[376375218,1753953642930,2929.60885238,0.000189,2]
[376375219,1753953643727,-183.818179,0.00019077,2]
[376375220,1753953645311,-155.37189955,0.00019077,2]
[376375221,1753953645334,-48.57369996,0.00019077,2]
[376375222,1753953647614,-344.61252723,0.00019077,2]
[376375223,1753953653176,-147.01995579,0.00019077,2]
[376375224,1753953653199,-68.36751698,0.00019077,2]
[376375225,1753953656718,-160.0,0.00019077,2]
[376375227,1753953747146,-206.01154556,0.00019076,2]
[376375228,1753953749648,-253.98845444,0.00019076,2]
[376375231,1753953786482,188.85848791,0.00018506,2]
[376375232,1753953798962,414.91848741,0.00018977,2]
[376375233,1753953807979,-278.29680352,0.00019073,2]
[376375236,1753953811065,-181.70319648,0.00019073,2]
[376375237,1753953883716,-390.85159824,0.00019073,2]
[376375238,1753953885501,-300.0,0.00019073,2]
[376375239,1753953888019,-294.66975099,0.00019073,2]
[376375240,1753954019034,152.0,0.00019,2]
[376375241,1753954019332,363.05367644,0.00018977,2]
[376375243,1753954105281,-160.0,0.00019072,2]
[376375244,1753954105302,-34.67326809,0.00019073,2]
[376375245,1753954124648,658.18992943,0.0001843,2]
[376375247,1753954129883,-182.65386049,0.00019,2]
[376375248,1753954132243,-277.34613951,0.00019,2]
[376375249,1753954135607,-384.68341842,0.00019,2]
[376375250,1753954140963,-403.73398994,0.00019,2]
[376375251,1753954143214,-173.49061871,0.00019,2]
[376375252,1753954145585,-417.34613951,0.00019,2]
[376375253,1753954148286,-235.7319346,0.00019,2]
[376375254,1753954152073,-411.58259164,0.00019,2]
[376375255,1753954154086,-183.75905393,0.00019,2]
[376375256,1753954157704,-191.68210038,0.00019,2]
[376375257,1753954157728,-1095.23982551,0.00019073,2]
[376375258,1753954161336,-300.0,0.00019073,2]
[376375339,1753954232556,-2356.04436337,0.00019073,2]
[376375341,1753954232565,-740.0,0.00019076,2]
[376375343,1753954232575,-300.0,0.00019076,2]
[376375345,1753954232584,-300.0,0.00019076,2]
[376375347,1753954232593,-300.0,0.00019076,2]
[376375349,1753954232602,-1200.0,0.00019076,2]
[376375351,1753954232611,-300.0,0.00019076,2]
[376375354,1753954232620,-300.0,0.00019076,2]
[376375357,1753954232630,-1543.16475368,0.00019077,2]
[376375360,1753954232639,-311.838666,0.00019077,2]
[376375363,1753954232648,-540.20618298,0.00019077,2]
[376375366,1753954232657,-540.20618298,0.00019077,2]
[376375369,1753954232666,-540.20618298,0.00019077,2]
[376375372,1753954232675,-540.20618298,0.00019077,2]
[376375375,1753954232683,-540.20618298,0.00019077,2]
[376375378,1753954232692,-540.20618298,0.00019077,2]
[376375381,1753954232701,-540.20618298,0.00019077,2]
[376375384,1753954232710,-540.20618298,0.00019077,2]
[376375387,1753954232719,-540.20618298,0.00019077,2]
[376375390,1753954232728,-540.20618298,0.00019077,2]
[376375393,1753954232737,-540.20618298,0.00019077,2]
[376375396,1753954232746,-540.20618298,0.00019077,2]
[376375399,1753954232755,-540.20618298,0.00019077,2]
[376375401,1753954232764,-540.20618298,0.00019077,2]
[376375403,1753954232774,-540.20618298,0.00019077,2]
[376375405,1753954232784,-540.20618298,0.00019077,2]
[376375407,1753954232793,-540.20618298,0.00019077,2]
[376375409,1753954232802,-540.20618298,0.00019077,2]
[376375411,1753954232811,-540.20618298,0.00019077,2]
[376375413,1753954232820,-540.20618298,0.00019077,2]
[376375415,1753954232828,-540.20618298,0.00019077,2]
[376375417,1753954232838,-540.20618298,0.00019077,2]
[376375419,1753954232848,-540.20618298,0.00019077,2]
[376375421,1753954232858,-540.20618298,0.00019077,2]
[376375423,1753954232867,-525.08040986,0.00019077,2]
[376375425,1753954232876,-525.08040986,0.00019077,2]
[376375427,1753954232886,-525.08040986,0.00019077,2]
[376375429,1753954232894,-525.08040986,0.00019077,2]
[376375431,1753954232903,-525.08040986,0.00019077,2]
[376375433,1753954232912,-525.08040986,0.00019077,2]
[376375435,1753954232922,-525.08040986,0.00019077,2]
[376375437,1753954232931,-525.08040986,0.00019077,2]
[376375439,1753954232940,-525.08040986,0.00019077,2]
[376375441,1753954232948,-525.08040986,0.00019077,2]
[376375442,1753954232957,-525.08040986,0.00019077,2]
[376375443,1753954232966,-525.08040986,0.00019077,2]
[376375445,1753954232975,-525.08040986,0.00019077,2]
[376375447,1753954232985,-525.08040986,0.00019077,2]
[376375449,1753954232994,-525.08040986,0.00019077,2]
[376375451,1753954233003,-525.08040986,0.00019077,2]
[376375453,1753954233011,-525.08040986,0.00019077,2]
[376375455,1753954233021,-525.08040986,0.00019077,2]
[376375457,1753954233031,-525.08040986,0.00019077,2]
[376375459,1753954233040,-525.08040986,0.00019077,2]
[376375461,1753954233049,-525.08040986,0.00019077,2]
[376375463,1753954233059,-525.08040986,0.00019077,2]
[376375465,1753954233068,-525.08040986,0.00019077,2]
[376375467,1753954233077,-525.08040986,0.00019077,2]
[376375469,1753954233086,-525.08040986,0.00019077,2]
[376375471,1753954233095,-1327.76317476,0.00019077,2]
[376375473,1753954233104,-1327.76317476,0.00019077,2]
[376375475,1753954233113,-1327.76317476,0.00019077,2]
[376375477,1753954233123,-1327.76317476,0.00019077,2]
[376375479,1753954233132,-1327.76317476,0.00019077,2]
[376375481,1753954233141,-1327.76317476,0.00019077,2]
[376375483,1753954233150,-1327.76317476,0.00019077,2]
[376375485,1753954233159,-1327.76317476,0.00019077,2]
[376375487,1753954233168,-1327.76317476,0.00019077,2]
[376375489,1753954233178,-1327.76317476,0.00019077,2]
[376375491,1753954233187,-1327.76317476,0.00019077,2]
[376375493,1753954233202,-1327.76317476,0.00019077,2]
[376375495,1753954233219,-1327.76317476,0.00019077,2]
[376375497,1753954233228,-1327.76317476,0.00019077,2]
[376375499,1753954233237,-1327.76317476,0.00019077,2]
[376375501,1753954233246,-1327.76317476,0.00019077,2]
[376375503,1753954233255,-1327.76317476,0.00019077,2]
[376375505,1753954233265,-1327.76317476,0.00019077,2]
[376375507,1753954233274,-1327.76317476,0.00019077,2]
[376375509,1753954233284,-1327.76317476,0.00019077,2]
[376375511,1753954233294,-1327.76317476,0.00019077,2]
[376375513,1753954233305,-1394.15133351,0.00019077,2]
[376375515,1753954233316,-1394.15133351,0.00019077,2]
[376375517,1753954233328,-1394.15133351,0.00019077,2]
[376375519,1753954233338,-1394.15133351,0.00019077,2]
[376375521,1753954233347,-1394.15133351,0.00019077,2]
[376375523,1753954233356,-1394.15133351,0.00019077,2]
[376375525,1753954233366,-1394.15133351,0.00019077,2]
[376375527,1753954233376,-1394.15133351,0.00019077,2]
[376375529,1753954233386,-370000.0,0.00019078,2]
[376375531,1753954233395,-500.0,0.00019173,2]
[376375533,1753954233405,-500.0,0.00019173,2]
[376375535,1753954233414,-501.01943038,0.00019173,2]
[376375537,1753954233424,-500.0,0.00019173,2]
[376375538,1753954233434,-500.0,0.00019173,2]
[376375539,1753954233443,-500.0,0.00019173,2]
[376375540,1753954233453,-500.0,0.00019173,2]
[376375541,1753954233463,-503.55123489,0.00019173,2]
[376375542,1753954233472,-501.63281376,0.00019173,2]
[376375543,1753954233481,-500.35414614,0.00019173,2]
[376375544,1753954233491,-500.0,0.00019173,2]
[376375545,1753954233500,-500.0,0.00019173,2]
[376375546,1753954233510,-500.0,0.00019173,2]
[376375547,1753954233519,-500.0,0.00019173,2]
[376375548,1753954233531,-500.0,0.00019173,2]
[376375549,1753954233548,-500.0,0.00019173,2]
[376375550,1753954233558,-500.0,0.00019173,2]
[376375551,1753954233568,-500.0,0.00019173,2]
[376375552,1753954233577,-500.0,0.00019173,2]
[376375553,1753954233587,-500.33812626,0.00019173,2]
[376375554,1753954233596,-510.72260156,0.00019173,2]
[376375555,1753954233606,-500.0,0.00019173,2]
[376375556,1753954233616,-582.21519902,0.00019173,2]
[376375557,1753954233625,-462.64752173,0.00019178,2]
[376375558,1753954233635,-460.0,0.00019178,2]
[376375559,1753954233644,-460.0,0.00019178,2]
[376375560,1753954233654,-599.68352466,0.00019178,2]
[376375561,1753954233663,-460.0,0.00019178,2]
[376375562,1753954233672,-460.0,0.00019178,2]
[376375563,1753954233682,-460.0,0.00019178,2]
[376375564,1753954233691,-538.16046026,0.00019178,2]
[376375565,1753954233700,-463.56213255,0.00019178,2]
[376375566,1753954233710,-460.0,0.00019178,2]
[376375567,1753954233720,-460.0,0.00019178,2]
[376375568,1753954233729,-460.0,0.00019178,2]
[376375569,1753954233738,-251.31249488,0.00019178,2]
[376375570,1753954233748,-460.0,0.00019178,2]
[376375571,1753954233757,-460.0,0.00019178,2]
[376375572,1753954233766,-460.0,0.00019178,2]
[376375573,1753954233776,-462.91987269,0.00019178,2]
[376375574,1753954233785,-460.0,0.00019178,2]
[376375575,1753954233794,-465.54516556,0.00019178,2]
[376375576,1753954233804,-460.0,0.00019178,2]
[376375577,1753954233813,-460.0,0.00019178,2]
[376375578,1753954233822,-460.0,0.00019178,2]
[376375579,1753954233832,-460.0,0.00019178,2]
[376375580,1753954233841,-460.0,0.00019178,2]
[376375581,1753954233851,-460.0,0.00019178,2]
[376375582,1753954233860,-460.0,0.00019178,2]
[376375583,1753954233869,-460.0,0.00019178,2]
[376375584,1753954233878,-460.0,0.00019178,2]
[376375585,1753954233888,-460.0,0.00019178,2]
[376375586,1753954233897,-509.85614979,0.00019178,2]
[376375587,1753954233907,-460.0,0.00019178,2]
[376375588,1753954233916,-460.0,0.00019178,2]
[376375589,1753954233926,-460.0,0.00019178,2]
[376375590,1753954233935,-460.0,0.00019178,2]
[376375591,1753954233945,-460.0,0.00019178,2]
[376375592,1753954233955,-460.0,0.00019178,2]
[376375593,1753954233964,-460.0,0.00019178,2]
[376375594,1753954233973,-460.0,0.00019178,2]
[376375595,1753954233983,-460.0,0.00019178,2]
[376375596,1753954234000,-213.10423497,0.00019178,2]
[376375597,1753954234019,-460.0,0.00019178,2]
[376375598,1753954234032,-460.0,0.00019178,2]
[376375599,1753954234041,-460.0,0.00019178,2]
[376375600,1753954234050,-460.0,0.00019178,2]
[376375601,1753954234059,-460.0,0.00019178,2]
[376375602,1753954234068,-461.21997159,0.00019178,2]
[376375603,1753954234077,-460.0,0.00019178,2]
[376375604,1753954234086,-460.0,0.00019178,2]
[376375605,1753954234095,-460.44513888,0.00019178,2]
[376375606,1753954234105,-460.0,0.00019178,2]
[376375607,1753954234114,-460.0,0.00019178,2]
[376375608,1753954234123,-460.0,0.00019178,2]
[376375609,1753954234132,-460.0,0.00019178,2]
[376375610,1753954234141,-460.0,0.00019178,2]
[376375611,1753954234150,-465.42611784,0.00019178,2]
[376375612,1753954234158,-460.0,0.00019178,2]
[376375613,1753954234167,-460.0,0.00019178,2]
[376375614,1753954234176,-460.0,0.00019178,2]
[376375615,1753954234185,-315.77804055,0.00019178,2]
[376375616,1753954234195,-460.0,0.00019178,2]
[376375617,1753954234207,-460.0,0.00019178,2]
[376375618,1753954234216,-460.0,0.00019178,2]
[376375619,1753954234226,-460.0,0.00019178,2]
[376375620,1753954234235,-460.0,0.00019178,2]
[376375621,1753954234246,-460.0,0.00019178,2]
[376375622,1753954234255,-460.09179567,0.00019178,2]
[376375623,1753954234264,-460.0,0.00019178,2]
[376375624,1753954234273,-460.0,0.00019178,2]
[376375625,1753954234286,-460.0,0.00019178,2]
[376375626,1753954234295,-460.0,0.00019178,2]
[376375627,1753954234305,-307.44839997,0.00019178,2]
[376375628,1753954234314,-460.0,0.00019178,2]
[376375629,1753954234323,-532.88261475,0.00019178,2]
[376375630,1753954234333,-461.45933676,0.00019178,2]
[376375631,1753954234342,-460.0,0.00019178,2]
[376375632,1753954234351,-460.0,0.00019178,2]
[376375633,1753954234361,-282.86098395,0.00019178,2]
[376375634,1753954234371,-460.0,0.00019178,2]
[376375635,1753954234380,-460.0,0.00019178,2]
[376375636,1753954234390,-460.0,0.00019178,2]
[376375637,1753954234399,-460.0,0.00019178,2]
[376375638,1753954234409,-460.0,0.00019178,2]
[376375639,1753954234419,-475.61987915,0.00019178,2]
[376375640,1753954234428,-188.25214472,0.00019178,2]
[376375641,1753954234438,-460.0,0.00019178,2]
[376375642,1753954234447,-150.11831949,0.00019178,2]
[376375643,1753954234456,-460.0,0.00019178,2]
[376375644,1753954234467,-407.18596913,0.00019178,2]
[376375645,1753954234476,-460.0,0.00019178,2]
[376375646,1753954234486,-460.0,0.00019178,2]
[376375647,1753954234495,-460.0,0.00019178,2]
[376375648,1753954234504,-460.0,0.00019178,2]
[376375649,1753954234513,-460.0,0.00019178,2]
[376375650,1753954234522,-460.0,0.00019178,2]
[376375651,1753954234532,-469.67885885,0.00019178,2]
[376375652,1753954234541,-460.0,0.00019178,2]
[376375653,1753954234551,-460.0,0.00019178,2]
[376375654,1753954234561,-460.0,0.00019178,2]
[376375655,1753954234569,-156.0624735,0.00019178,2]
[376375656,1753954234578,-325.60752576,0.00019178,2]
[376375657,1753954234593,-134.39247424,0.00019178,2]
[376375658,1753954234603,-242.86322468,0.00019178,2]
[376375659,1753954234768,317.67196692,0.00018977,2]
[376375730,1753954238758,-217.13677532,0.00019178,2]
[376375732,1753954238767,-460.0,0.00019178,2]
[376375734,1753954238777,-460.0,0.00019178,2]
[376375736,1753954238787,-460.0,0.00019178,2]
[376375738,1753954238796,-460.0,0.00019178,2]
[376375739,1753954238804,-460.0,0.00019178,2]
[376375742,1753954238814,-460.0,0.00019178,2]
[376375744,1753954238824,-460.0,0.00019178,2]
[376375746,1753954238834,-460.0,0.00019178,2]
[376375748,1753954238844,-460.0,0.00019178,2]
[376375749,1753954238853,-460.0,0.00019178,2]
[376375752,1753954238863,-460.0,0.00019178,2]
[376375754,1753954238872,-549.51656381,0.00019178,2]
[376375756,1753954238883,-460.0,0.00019178,2]
[376375757,1753954238892,-460.0,0.00019178,2]
[376375760,1753954238902,-605.76887846,0.00019178,2]
[376375762,1753954238911,-460.0,0.00019178,2]
[376375763,1753954238920,-460.0,0.00019178,2]
[376375766,1753954238930,-460.0,0.00019178,2]
[376375767,1753954238939,-460.0,0.00019178,2]
[376375769,1753954238949,-460.0,0.00019178,2]
[376375771,1753954238958,-460.0,0.00019178,2]
[376375773,1753954238967,-460.0,0.00019178,2]
[376375775,1753954238975,-460.0,0.00019178,2]
[376375777,1753954238985,-460.0,0.00019178,2]
[376375779,1753954238994,-460.0,0.00019178,2]
[376375781,1753954239003,-460.0,0.00019178,2]
[376375783,1753954239012,-460.0,0.00019178,2]
[376375785,1753954239021,-460.0,0.00019178,2]
[376375787,1753954239029,-460.0,0.00019178,2]
[376375789,1753954239038,-460.0,0.00019178,2]
[376375790,1753954239048,-460.0,0.00019178,2]
[376375791,1753954239057,-460.0,0.00019178,2]
[376375793,1753954239066,-460.0,0.00019178,2]
[376375806,1753954239190,-460.0,0.00019178,2]
[376375809,1753954239203,-460.0,0.00019178,2]
[376375810,1753954239213,-460.0,0.00019178,2]
[376375813,1753954239223,-460.0,0.00019178,2]
[376375814,1753954239232,-460.0,0.00019178,2]
[376375817,1753954239243,-460.0,0.00019178,2]
[376375819,1753954239252,-460.0,0.00019178,2]
[376375820,1753954239262,-460.0,0.00019178,2]
[376375823,1753954239272,-460.0,0.00019178,2]
[376375825,1753954239281,-460.0,0.00019178,2]
[376375827,1753954239291,-460.0,0.00019178,2]
[376375829,1753954239300,-460.0,0.00019178,2]
[376375830,1753954239310,-460.0,0.00019178,2]
[376375833,1753954239319,-460.0,0.00019178,2]
[376375835,1753954239329,-329.07869915,0.00019178,2]
[376375837,1753954239338,-460.0,0.00019178,2]
[376375839,1753954239348,-460.0,0.00019178,2]
[376375840,1753954239356,-460.0,0.00019178,2]
[376375842,1753954239366,-460.0,0.00019178,2]
[376375844,1753954239375,-460.0,0.00019178,2]
[376375845,1753954239384,-460.0,0.00019178,2]
[376375847,1753954239393,-460.0,0.00019178,2]
[376375849,1753954239402,-460.0,0.00019178,2]
[376375851,1753954239411,-460.0,0.00019178,2]
[376375853,1753954239420,-460.0,0.00019178,2]
[376375854,1753954239429,-460.0,0.00019178,2]
[376375856,1753954239438,-460.0,0.00019178,2]
[376375858,1753954239449,-460.0,0.00019178,2]
[376375860,1753954239458,-504.89584537,0.00019178,2]
[376375862,1753954239467,-460.0,0.00019178,2]
[376375864,1753954239476,-460.0,0.00019178,2]
[376375866,1753954239485,-460.0,0.00019178,2]
[376375867,1753954239495,-460.0,0.00019178,2]
[376375869,1753954239504,-460.0,0.00019178,2]